Cogmind - Beta 10 @@@ ROGUE MODE // 2020.09.15 @ 06:13:07 // Winter2019/RPGLIKE Player: Hermelin Result: Destroyed by NH-FOG(z) with Zionite Laser-S Performance ------------- Evolutions (4) 2000 Regions Visited (16) 3200 Robots Destroyed (239) 1195 Value Destroyed (6763) 6763 Prototype IDs (73) 1460 Alien Tech Used (0) 0 Bonus (1681) 1681 TOTAL SCORE: 16299 Bonus ------- High Alert Combat Kills 476 Follower Combat Kills 291 Aligned with FarCom 300 Met Data Miner 300 Met Imprinter 300 Destroyed Z-Imprinter 1000 Friendly Fire -986 Cogmind --------- Core Integrity 0/1050 Matter 300/300 Energy 223/260 System Corruption 0% Temperature Cool (8) Movement Hovering (103) Ox1 Location -6/Deep Caves Parts ------- > --- POWER (2) -------- Light Fission Core Cold Fusion Reactor > --- PROPULSION (3) --- Combat Airjet Zionite Glidesys I > --- UTILITY (10) ----- Zionite Metafield Generator Experimental Sensor Array Long-range Terrain Scanner Advanced Core Analyzer Improved Shield Generator Ghost Barrier Quantum Router Combat Drone Bay (0/2) > --- WEAPON (4) ------- Master Tearclaws Spear CR-A16's Pointy Stick > --- INVENTORY (6) ---- System Purifier Hacking Drone Bay (1/1) Peak State ------------ > --- POWER ------------ Light Fission Core Cold Fusion Reactor > --- PROPULSION ------- Combat Airjet Zionite Glidesys I Zionite Glidesys I > --- UTILITY ---------- Zionite Metafield Generator Experimental Sensor Array Long-range Terrain Scanner Advanced Core Analyzer Medium Reactive Plating Improved Shield Generator Ghost Barrier Quantum Router Combat Drone Bay > --- WEAPON ----------- AWS/EX-DEC Molecular Deconstructor > --- INVENTORY -------- System Purifier Hacking Drone Bay Master Tearclaws Spear CR-A16's Pointy Stick [Rating: 138] Favorites ----------- Power Cold Fusion Reactor Engine Ion Engine Power Core Light Nuclear Core Reactor Cold Fusion Reactor Propulsion Combat Airjet Treads Light Treads Hover Unit Combat Airjet Flight Unit Improved VTOL Module Utility Improved Medium Armor Plating Device Experimental Sensor Array Processor Advanced Core Analyzer Hackware Hacking Suite Protection Improved Medium Armor Plating Weapon Spear Energy Gun AWS/EX-DEC Energy Cannon Advanced Beam Cannon Ballistic Gun Assault Rifle Launcher Rocket Launcher Special Weapon Field Lobotomy Kit Impact Weapon Impact Mace Slashing Weapon Master Tearclaws Piercing Weapon Spear Build | -11 -10 -10 -10 -9 -8 -8 -7 -7 -7 -7 -6 -6 -6 -6 -6 -6 ------- Run | Scr Mat Min Exi Min Mat Sto Fac Low Low Dat Pro Fac Low Low Zio Dee Slots Evolved 15 | 3 1 1 . 1 4 1 2 . . . 1 . . 1 . . Power 1 | . . . . . 1 . . . . . . . . . . . Propulsion 2 | 1 . . . . . . 1 . . . . . . . . . Utility 9 | 1 1 . . 1 3 1 1 . . . 1 . . . . . Weapon 3 | 1 . 1 . . . . . . . . . . . 1 . . Parts Attached 114 | 8 8 3 7 2 23 13 8 1 2 3 3 5 7 3 6 12 Power 10 | 1 1 . 1 . 3 . 1 . . . . 2 1 . . . Engine 3 | 1 1 . . . . . . . . . . 1 . . . . Core 4 | . . . . . 1 . 1 . . . . 1 1 . . . Reactor 3 | . . . 1 . 2 . . . . . . . . . . . Propulsion 15 | 3 3 . 1 . 3 . 2 . . . . . 1 . . 2 Treads 3 | 2 1 . . . . . . . . . . . . . . . Leg . | . . . . . . . . . . . . . . . . . Wheel . | . . . . . . . . . . . . . . . . . Hover 11 | 1 2 . 1 . 2 . 2 . . . . . 1 . . 2 Flight 1 | . . . . . 1 . . . . . . . . . . . Utility 44 | 2 2 . 2 2 10 2 4 . 1 . 3 1 3 2 4 6 Device 26 | 1 . . 1 1 4 1 4 . 1 . 1 1 2 2 2 5 Storage . | . . . . . . . . . . . . . . . . . Processor 5 | 1 . . 1 . 2 . . . . . . . . . 1 . Hackware 3 | . 1 . . . . . . . . . 2 . . . . . Protection 10 | . 1 . . 1 4 1 . . . . . . 1 . 1 1 Artifact . | . . . . . . . . . . . . . . . . . Weapon 45 | 2 2 3 3 . 7 11 1 1 1 3 . 2 2 1 2 4 Energy Gun 12 | 1 2 . 1 . 2 2 . 1 . 1 . . 1 . . 1 Energy Cannon 1 | . . . . . . 1 . . . . . . . . . . Ballistic Gun 6 | 1 . 2 1 . . 2 . . . . . . . . . . Ballistic Cannon . | . . . . . . . . . . . . . . . . . Launcher 2 | . . . 1 . . 1 . . . . . . . . . . Special Weapon 4 | . . 1 . . . . . . 1 . . 1 . . 1 . Impact Weapon 2 | . . . . . . . 1 . . . . . . 1 . . Slashing Weapon 1 | . . . . . . . . . . . . . . . . 1 Piercing Weapon 17 | . . . . . 5 5 . . . 2 . 1 1 . 1 2 Special Melee Weapon . | . . . . . . . . . . . . . . . . . Unidentified Prototypes 21 | . . . 3 . 2 6 1 . . . 2 1 . . 2 4 Parts Lost 2 | . . . . . . . . . . . . . . . . 2 Power . | . . . . . . . . . . . . . . . . . Propulsion 1 | . . . . . . . . . . . . . . . . 1 Utility 1 | . . . . . . . . . . . . . . . . 1 Weapon . | . . . . . . . . . . . . . . . . . Highest Loss Streak 2 | . . . . . . . . . . . . . . . . 2 Average Slot Usage (%) 95 | . 93 99 98 90 96 98 99 94 94 96 93 99 93 88 89 85 Engine 2 | . 12 11 9 . . . . . . . . . . . . . Core 3 | . . . . . 5 6 5 5 5 5 5 5 5 5 5 5 Reactor 4 | . . . 1 10 7 6 5 5 5 5 5 5 5 5 5 5 Treads 2 | . 12 11 9 . . . . . . . . . . . . . Hover 14 | . 12 11 12 20 15 13 13 17 17 17 16 16 15 15 15 14 Device 19 | . 12 11 11 12 13 16 28 29 29 29 29 26 27 22 26 25 Processor 7 | . 6 . 1 10 8 13 11 11 11 11 11 11 11 9 5 5 Hackware 7 | . 6 11 11 10 7 6 1 . . . . 11 11 10 10 10 Protection 8 | . . 11 9 7 13 14 11 11 11 11 11 5 5 5 5 4 Energy Gun 6 | . 12 11 12 20 5 . . 4 5 2 5 . 4 5 4 2 Ballistic Gun 4 | . 12 21 19 . . . . . . . . . . . . . Piercing Weapon 8 | . . . . . 16 20 16 1 . 5 5 10 4 5 9 5 Naked Turns . | . . . . . . . . . . . . . . . . . Heaviest Build 78 | 10 14 16 30 30 44 43 49 55 60 59 57 52 60 74 74 78 Greatest Support 71 | 40 33 27 44 44 44 44 71 71 71 71 71 71 71 71 71 71 Greatest Overweight (x) 1 | . . . . . 1 . . . . . . . 1 1 1 1 Average Overweight (x) . | . . . . . . . . . . . . . . . . . Largest Inventory Capacity 6 | 2 3 3 3 4 4 5 6 6 6 6 6 6 6 6 6 6 Average Capacity 3 | 1 2 3 3 3 4 4 5 6 6 6 6 6 6 6 6 6 Most Carried 6 | 2 3 3 3 3 4 5 6 6 6 6 6 6 6 6 6 6 Average Carried 3 | 1 2 2 2 2 3 4 5 5 5 5 5 5 5 5 5 5 Final Capacity 6 | 2 3 3 3 4 4 5 6 6 6 6 6 6 6 6 6 6 Final Carried 6 | 2 3 3 3 3 4 5 6 6 6 5 6 6 6 6 6 2 Class Distribution -------------------- 27% | Mutant 15% | Scavenger-Mutant 11% | Hacker-Skirmisher 9% | Scavenger-Ninja 8% | Wizard-Assassin 7% | Scavenger-Scout 6% | Wizard-Ninja 4% | Hacker-Ninja 4% | Hacker-Mutant 3% | Wizard-Scout Dominant Class ---------------- Hacker-Mutant | -10/Materials Hacker-Skirmisher | -10/Mines Hacker-Skirmisher | -10/Exiles Scavenger-Mutant | -9/Mines Scavenger-Mutant | -8/Materials Scavenger-Mutant | -8/Storage Scavenger-Ninja | -7/Factory Scavenger-Ninja | -7/Lower Caves Scavenger-Ninja | -7/Lower Caves Scavenger-Scout | -7/Data Miner Scavenger-Ninja | -6/Proximity Caves Wizard-Ninja | -6/Factory Wizard-Ninja | -6/Lower Caves Wizard-Scout | -6/Lower Caves Wizard-Assassin | -6/Zion Wizard-Scout | -6/Deep Caves Resources | -11 -10 -10 -10 -9 -8 -8 -7 -7 -7 -7 -6 -6 -6 -6 -6 -6 ----------- Run | Scr Mat Min Exi Min Mat Sto Fac Low Low Dat Pro Fac Low Low Zio Dee Matter Collected 1718 | 304 200 69 175 20 230 130 80 10 20 . 60 50 85 30 . 255 Remotely . | . . . . . . . . . . . . . . . . . Salvage Created 8700 | 114 723 35 14 332 2530 1017 1024 . 446 . 865 920 278 . . 402 Parts 488 | 6 54 9 . 9 154 59 69 2 14 2 28 40 18 . . 24 Haulers Intercepted 15 | . 2 . . . 6 5 1 . . . . 1 . . . . Recyclers Shooed 1 | 1 . . . . . . . . . . . . . . . . Parts Field Recycled . | . . . . . . . . . . . . . . . . . Retrieved Matter . | . . . . . . . . . . . . . . . . . Parts Self-Destructed 54 | . . . . . . . . 2 26 . 20 . 6 . . . Prevented 30 | . . . . . . . . 2 9 . 14 . 5 . . . Kills | -11 -10 -10 -10 -9 -8 -8 -7 -7 -7 -7 -6 -6 -6 -6 -6 -6 ------- Run | Scr Mat Min Exi Min Mat Sto Fac Low Low Dat Pro Fac Low Low Zio Dee Combat Hostiles Destroyed 178 | 1 19 5 3 11 47 19 18 1 11 . 19 10 8 . . 6 Melee 95 | . . . . . 37 19 18 . 1 . 8 10 . . . 2 Guns 61 | 1 15 5 . 11 8 . . . 6 . 8 . 5 . . 2 AOE 7 | . 4 . 3 . . . . . . . . . . . . . Classes Destroyed 18 | 3 5 1 1 1 3 . 1 . 1 . 1 . . . . 1 Worker 10 | . . 1 . . 5 . 4 . . . . . . . . . Builder 3 | . . . . 1 1 . . . . . . 1 . . . . Tunneler 1 | 1 . . . . . . . . . . . . . . . . Hauler 15 | . 2 . . . 6 5 1 . . . . 1 . . . . Recycler 12 | 1 1 . . . 4 2 2 . . . . 2 . . . . Minesweeper 1 | . . . . . . . . . . . 1 . . . . . Operator 6 | . 2 . . . 1 1 2 . . . . . . . . . Watcher 9 | . 3 . . . 4 . 1 . . . . 1 . . . . Swarmer 46 | . 9 3 . . 12 8 . . 2 . 5 3 4 . . . Grunt 75 | . 10 2 . 2 26 6 10 . 7 . 10 2 . . . . Brawler 4 | . . . . . 1 . 1 . 1 . 1 . . . . . Duelist 2 | . . . . . 1 . . . . . 1 . . . . . Sentry 25 | . . . . . 7 5 6 1 . . 1 5 . . . . Demolisher 1 | 1 . . . . . . . . . . . . . . . . Hunter 2 | . . . . . . . 1 . . . 1 . . . . . Z-Light 5 | . . . . . . . . . . . . . . . . 5 Master Thief 7 | . . . . . . . . . 1 1 . . 5 . . . Assembled 14 | . . . 5 9 . . . . . . . . . . . . Best Kill Streak 10 | 2 10 3 3 10 7 4 4 1 5 . 10 5 4 . . 4 Combat Bots Only 10 | 1 8 3 3 9 6 4 4 1 5 . 10 3 4 . . 4 Max Kills in Single Turn 3 | 1 2 1 3 2 1 2 1 1 1 1 1 2 1 . . 1 Gunslinging . | . . . . . . . . . . . . . . . . . Exploded 3 | . 2 . 3 . . . . . . . . . . . . . Melee 2 | . . . . . 1 2 1 . 1 . 1 2 . . . 1 Uniques/NPCs Destroyed 3 | . . . 2 . . . . . . . . . . . . 1 EX-DEC (-10/Exiles) EX-HEX (-10/Exiles) EX-BIN (-10/Exiles) 8R-AWN (-10/Exiles) Z-Imprinter (-6/Deep Caves) Combat | -11 -10 -10 -10 -9 -8 -8 -7 -7 -7 -7 -6 -6 -6 -6 -6 -6 -------- Run | Scr Mat Min Exi Min Mat Sto Fac Low Low Dat Pro Fac Low Low Zio Dee Damage Taken 7083 | 97 531 157 242 405 1547 337 730 348 311 . 609 554 17 . . 1198 Core 4712 | 76 425 108 171 339 995 167 403 214 161 . 387 373 10 . . 883 Absorbed by Shields 1472 | . . . . . 164 132 290 109 70 . 202 195 6 . . 304 Redirected to Core 3950 | 76 314 88 171 226 820 139 344 173 161 . 321 295 10 . . 812 Core Remaining (%) 84 | 87 . . . 52 . 98 . . . . 100 . . . . . Volleys Fired 193 | 8 54 8 23 22 59 . . . 2 1 . . 1 . 4 11 Largest 3 | 2 2 3 3 1 1 . . . 1 1 . . 1 . 1 1 Hottest 85 | 60 65 85 85 45 45 . . . . . . . . . . . Shots Fired 475 | 16 88 23 41 42 73 . . . 46 1 37 . 54 . 4 50 Gun 454 | 16 88 23 39 42 73 . . . 44 . 37 . 53 . . 39 Cannon . | . . . . . . . . . . . . . . . . . Launcher 2 | . . . 2 . . . . . . . . . . . . . Special 19 | . . . . . . . . . 2 1 . . 1 . 4 11 Kinetic 83 | 8 41 16 18 . . . . . . . . . . . . . Thermal . | . . . . . . . . . . . . . . . . . Explosive 2 | . . . 2 . . . . . . . . . . . . . Electromagnetic 371 | 8 47 7 21 42 73 . . . 44 . 37 . 53 . . 39 Robot Hit Streak 29 | 4 8 5 9 8 16 . . . 26 5 29 . 8 . . 14 Robot Miss Streak 7 | 2 3 4 5 4 6 . . . 3 . 1 . 7 . . 3 Penetration Max . | . . . . . . . . . . . . . . . . . Secondary Targets 6 | . 5 1 . . . . . . . . . . . . . . Max Gunslinging Chain 1 | . 1 1 . . . . . . . . . . . . . . Autonomous 208 | . . . . 20 14 . . . 44 . 37 . 53 . . 40 Shots Hit Robots 714 | 11 70 10 27 36 178 61 71 10 46 4 56 43 42 . . 49 Core Hits 442 | 5 41 9 14 31 111 34 48 1 28 1 39 26 21 . . 33 Critical Hits 19 | . . . . 1 4 3 5 . . . . 3 2 . . 1 Critical Kills 9 | . . . . 1 3 2 3 . . . . . . . . . Critical Parts Destroyed 6 | . . . . . 1 . 2 . . . . 1 2 . . . Melee Attacks 452 | . . . . . 146 85 99 11 8 3 20 53 3 7 . 17 Impact 25 | . . . . . . . 5 11 8 . . . . 1 . . Slashing 1 | . . . . . . . . . . . . . . . . 1 Piercing 426 | . . . . . 146 85 94 . . 3 20 53 3 6 . 16 Sneak Attacks 56 | . . . . . 18 11 13 . . 3 1 10 . . . . Combat Hostiles 6 | . . . . . 3 . 2 . . . . 1 . . . . Follow-up Attacks 68 | . . . . . 28 14 15 . . . . 7 . . . 4 Damage Inflicted 20555 | 135 1205 204 565 681 5581 2553 2741 240 1341 239 1779 1848 797 . . 646 Guns 6810 | 135 926 166 218 645 1191 . . . 1194 . 1148 . 797 . . 390 Cannons . | . . . . . . . . . . . . . . . . . Explosions 752 | . 276 38 347 36 55 . . . . . . . . . . . Melee 12990 | . . . . . 4335 2553 2741 240 147 239 631 1848 . . . 256 Ramming 3 | . 3 . . . . . . . . . . . . . . . Kinetic 582 | 67 282 107 126 . . . . . . . . . . . . . Thermal 405 | . 276 38 . 36 55 . . . . . . . . . . . Explosive 347 | . . . 347 . . . . . . . . . . . . . Electromagnetic 6228 | 68 644 59 92 645 1191 . . . 1194 . 1148 . 797 . . 390 Impact 525 | . . . . . . . 138 240 147 . . . . . . . Slashing 10 | . . . . . . . . . . . . . . . . 10 Piercing 12455 | . . . . . 4335 2553 2603 . . 239 631 1848 . . . 246 Highest Corruption 4 | . 1 1 1 1 . . . . . . . 4 4 . . . Average Corruption 1 | . 1 1 1 1 . . . . . . . 3 3 . . . Corruption Purged 5 | . . . . 1 . . . . . . . . 4 . . . Effects 17 | . 5 4 4 . . . . . . . . 2 2 . . . Message Errors 6 | . 2 . 3 . . . . . . . . . 1 . . . Matter Fused 2 | . . . . . . . . . . . . 1 1 . . . Energy Discharges 3 | . . 2 1 . . . . . . . . . . . . . Data Loss (minor) 4 | . 1 2 . . . . . . . . . 1 . . . . Targeting Errors 2 | . 2 . . . . . . . . . . . . . . . Overload Shots . | . . . . . . . . . . . . . . . . . Overflow Damage 969 | . . . 15 . 292 130 161 12 17 20 50 272 . . . . Projectiles . | . . . . . . . . . . . . . . . . . Explosions 15 | . . . 15 . . . . . . . . . . . . . Melee 954 | . . . . . 292 130 161 12 17 20 50 272 . . . . Knockbacks . | . . . . . . . . . . . . . . . . . Impact . | . . . . . . . . . . . . . . . . . Kinetic . | . . . . . . . . . . . . . . . . . Secondary . | . . . . . . . . . . . . . . . . . Self-Inflicted Damage 170 | . 80 23 . 34 33 . . . . . . . . . . . Shots 6 | . 3 1 . 1 1 . . . . . . . . . . . Rammed 1 | . 1 . . . . . . . . . . . . . . . Targets Rammed 1 | . 1 . . . . . . . . . . . . . . . Kicked . | . . . . . . . . . . . . . . . . . Crushed . | . . . . . . . . . . . . . . . . . Highest Temperature 36 | 20 14 36 27 13 14 . . . . . 6 . . . . 12 Average Temperature 8 | 15 5 13 10 6 5 . . . . . 3 . . . . 6 Received Heat Transfer 1904 | . 90 36 . 76 597 108 220 94 63 . 167 111 . . . 342 Siege Activations . | . . . . . . . . . . . . . . . . . Robots Corrupted 14 | . 1 . . . 2 . . . 4 . 3 . 4 . . . Combat Hostiles 12 | . . . . . 2 . . . 4 . 3 . 3 . . . Parts Fried 49 | . 3 . . 1 11 . . 1 7 2 7 . 17 . . . Impact Corruptions 3 | . . . . . . . . 2 1 . . . . . . . Robots Melted . | . . . . . . . . . . . . . . . . . Combat Hostiles . | . . . . . . . . . . . . . . . . . Parts Melted 1 | . 1 . . . . . . . . . . . . . . . Heat Transferred 550 | . 350 50 . 50 100 . . . . . . . . . . . Parts Sabotaged . | . . . . . . . . . . . . . . . . . Parts Stolen 3 | . . . . . . . . . . . . . 3 . . . Parts Stripped . | . . . . . . . . . . . . . . . . . Power Chain Reactions 9 | . 5 1 . 1 2 . . . . . . . . . . . Missiles Intercepted . | . . . . . . . . . . . . . . . . . Alert | -11 -10 -10 -10 -9 -8 -8 -7 -7 -7 -7 -6 -6 -6 -6 -6 -6 ------- Run | Scr Mat Min Exi Min Mat Sto Fac Low Low Dat Pro Fac Low Low Zio Dee Peak Influence 886 | 20 405 249 . 174 886 578 618 . . . . 534 . . . . Initial 373 | . . 129 . . . 373 172 . . . . 253 . . . . Average 195 | 2 230 116 . 102 332 367 421 . . . . 264 . . . . Maximum Alert Level 3 | . 2 1 . . 3 2 2 . . . . 2 . . . . Low Security (%) 57 | 100 23 83 . 100 38 7 3 . . . . 45 . . . . Level 1 20 | . 75 16 . . 12 56 34 . . . . 28 . . . . Level 2 20 | . . . . . 41 36 62 . . . . 26 . . . . Level 3 1 | . . . . . 7 . . . . . . . . . . . Level 4 . | . . . . . . . . . . . . . . . . . Level 5 . | . . . . . . . . . . . . . . . . . High Security . | . . . . . . . . . . . . . . . . . Max Security . | . . . . . . . . . . . . . . . . . Squads Dispatched 36 | . 4 . . . 9 3 12 . 1 . . 7 . . . . Investigation 20 | . 2 . . . 7 2 8 . . . . 1 . . . . Extermination . | . . . . . . . . . . . . . . . . . Reinforcement 11 | . 2 . . . 1 1 3 . . . . 4 . . . . Assault 4 | . . . . . . . 1 . 1 . . 2 . . . . Garrison 1 | . . . . . 1 . . . . . . . . . . . Intercept . | . . . . . . . . . . . . . . . . . Construction Impeded . | . . . . . . . . . . . . . . . . . Haulers Reinforced 1 | . . . . . . . . . . . . 1 . . . . Stealth | -11 -10 -10 -10 -9 -8 -8 -7 -7 -7 -7 -6 -6 -6 -6 -6 -6 --------- Run | Scr Mat Min Exi Min Mat Sto Fac Low Low Dat Pro Fac Low Low Zio Dee Distress Signals 7 | . 2 . . . 2 3 . . . . . . . . . . Communications Jammed . | . . . . . . . . . . . . . . . . . Distress Signals . | . . . . . . . . . . . . . . . . . Times Spotted 281 | 1 30 5 6 29 67 28 29 1 17 . 23 25 11 . . 9 Peak Tracking Total 19 | 1 9 3 7 19 5 6 5 1 10 . 11 9 4 . . 6 Tactical Retreats 20 | . . . . 4 7 1 2 . 1 . 2 3 . . . . Traps | -11 -10 -10 -10 -9 -8 -8 -7 -7 -7 -7 -6 -6 -6 -6 -6 -6 ------- Run | Scr Mat Min Exi Min Mat Sto Fac Low Low Dat Pro Fac Low Low Zio Dee Traps Triggered 3 | . 1 . . . . 1 1 . . . . . . . . . Indirectly . | . . . . . . . . . . . . . . . . . Trap Hack Attempts . | . . . . . . . . . . . . . . . . . Triggered . | . . . . . . . . . . . . . . . . . Disarmed . | . . . . . . . . . . . . . . . . . Reprogrammed 6 | . . . . . . . . . . . . 6 . . . . Reused 5 | . . . . . . . . . . . . 5 . . . . Traps Extracted . | . . . . . . . . . . . . . . . . . Installed 3 | . . . . . . . . . . . 1 2 . . . . Triggered 12 | . 1 . . . . . . . 1 . 2 5 3 . . . Machines | -11 -10 -10 -10 -9 -8 -8 -7 -7 -7 -7 -6 -6 -6 -6 -6 -6 ---------- Run | Scr Mat Min Exi Min Mat Sto Fac Low Low Dat Pro Fac Low Low Zio Dee Machines Disabled 15 | . 1 . 5 1 . 5 . . . . . . . 2 . 1 Max in Single Turn 2 | . 1 . 2 . . 1 . . . . . . . 1 . . Garrison Access 6 | . . . . . 1 1 3 . . . . 1 . . . . Machines Sabotaged . | . . . . . . . . . . . . . . . . . Garrisons Compromised . | . . . . . . . . . . . . . . . . . Overloaded Fab Kills . | . . . . . . . . . . . . . . . . . Fab Network Shutdowns 1 | . . . . . . . . . . . . 1 . . . . Hacking | -11 -10 -10 -10 -9 -8 -8 -7 -7 -7 -7 -6 -6 -6 -6 -6 -6 --------- Run | Scr Mat Min Exi Min Mat Sto Fac Low Low Dat Pro Fac Low Low Zio Dee Machines Accessed 71 | . 7 . 3 . 14 16 13 1 . 4 . 12 1 . . . Terminals 40 | . 5 . . . 8 13 6 . . . . 8 . . . . Fabricators 3 | . . . . . . . 2 . . . . 1 . . . . Repair Stations 4 | . 1 . . . 2 . . . . . . 1 . . . . Recycling Units 7 | . 1 . . . 1 2 2 . . . . 1 . . . . Scanalyzers 2 | . . . . . 2 . . . . . . . . . . . Garrison Access 6 | . . . . . 1 1 3 . . . . 1 . . . . Total Hacks 369 | . 32 . 3 . 70 79 41 9 . 26 . 108 1 . . . Successful 258 | . 25 . 3 . 46 52 23 9 . 26 . 73 1 . . . Failed 108 | . 6 . . . 24 27 17 . . . . 34 . . . . Catastrophic 15 | . 1 . . . 7 2 2 . . . . 3 . . . . Database Lockouts 3 | . 1 . . . . . 1 . . . . 1 . . . . Manual 178 | . 20 . 1 . 30 56 17 . . . . 53 . 1 . . Terminals 264 | . 28 . . . 42 74 22 . . . . 98 . . . . Fabricators 11 | . . . . . . . 8 . . . . 3 . . . . Repair Stations 15 | . 2 . . . 12 . . . . . . 1 . . . . Recycling Units 17 | . 2 . . . 2 4 6 . . . . 3 . . . . Scanalyzers 10 | . . . . . 10 . . . . . . . . . . . Garrison Access 13 | . . . . . 4 1 5 . . . . 3 . . . . Terminal Hacks 147 | . 13 . 3 . 13 27 10 9 . 26 . 45 1 . . . Record 22 | . . . 2 . . . . 9 . 11 . . . . . . Part Schematic 16 | . . . . . . 1 1 . . 7 . 7 . . . . Robot Schematic 5 | . . . . . . . . . . 5 . . . . . . Robot Analysis 11 | . 5 . . . 1 . 2 . . . . 3 . . . . Prototype ID Bank 14 | . 3 . . . 1 1 2 . . 3 . 4 . . . . Open Door 6 | . . . . . . 5 . . . . . . 1 . . . Level Access Points 2 | . . . . . . 1 . . . . . 1 . . . . Branch Access Points 4 | . 1 . . . 1 . 1 . . . . 1 . . . . Machine Index 2 | . . . . . . 1 . . . . . 1 . . . . Terminal Index 5 | . . . . . 1 1 . . . . . 3 . . . . Repair Station Index 1 | . . . . . . 1 . . . . . . . . . . Scanalyzer Index 1 | . . . . . . 1 . . . . . . . . . . Alert Level 8 | . . . . . 1 3 . . . . . 4 . . . . Unreport Threat 14 | . . . . . 4 4 1 . . . . 5 . . . . Locate Traps 12 | . 1 . . . 2 2 2 . . . . 5 . . . . Reprogram Traps 2 | . . . . . . . . . . . . 2 . . . . Extermination Status 1 | . . . . . . . . . . . . 1 . . . . Recall Investigation 2 | . 1 . . . . 1 . . . . . . . . . . Recall Reinforcements 1 | . . . . . . . . . . . . 1 . . . . Recall Assault 1 | . . . . . . . . . . . . 1 . . . . Hauler Manifests 5 | . 1 . . . . 2 . . . . . 2 . . . . Registered Components 2 | . . . . . . 1 . . . . . 1 . . . . Registered Prototypes 2 | . . . . . . 1 . . . . . 1 . . . . Zone Layout 7 | . 1 . . . 2 1 1 . . . . 2 . . . . EX-Prototype ID Bank 1 | . . . 1 . . . . . . . . . . . . . Fabricator Hacks 5 | . . . . . . . 3 . . . . 2 . . . . Load Schematic 2 | . . . . . . . 1 . . . . 1 . . . . Build 3 | . . . . . . . 2 . . . . 1 . . . . Repair Station Hacks 12 | . 2 . . . 10 . . . . . . . . . . . Scan Component 6 | . 1 . . . 5 . . . . . . . . . . . Repair 6 | . 1 . . . 5 . . . . . . . . . . . Recycling Unit Hacks 8 | . 1 . . . 1 2 3 . . . . 1 . . . . Report Inventory 7 | . 1 . . . 1 2 2 . . . . 1 . . . . Retrieve Components 1 | . . . . . . . 1 . . . . . . . . . Scanalyzer 10 | . . . . . 10 . . . . . . . . . . . Insert Component 5 | . . . . . 5 . . . . . . . . . . . Analyze 5 | . . . . . 5 . . . . . . . . . . . Garrison Access Hacks 5 | . . . . . 1 1 2 . . . . 1 . . . . Seal Access 5 | . . . . . 1 1 2 . . . . 1 . . . . Unauthorized Hacks 71 | . 9 . . . 11 22 5 . . . . 24 . . . . Terminals 58 | . 8 . . . 10 20 1 . . . . 19 . . . . Track 22 | . 3 . . . 5 8 . . . . . 6 . . . . Assimilate 3 | . . . . . . . . . . . . 3 . . . . Botnet 27 | . 4 . . . 5 11 1 . . . . 6 . . . . Detonate 1 | . . . . . . . . . . . . 1 . . . . Disrupt 1 | . . . . . . . . . . . . 1 . . . . Operators 4 | . 1 . . . . 1 . . . . . 2 . . . . Fabricators 2 | . . . . . . . 1 . . . . 1 . . . . Report 2 | . . . . . . . 1 . . . . 1 . . . . Repair Stations 1 | . . . . . . . . . . . . 1 . . . . Mechanics 1 | . . . . . . . . . . . . 1 . . . . Recycling Units 8 | . 1 . . . 1 2 2 . . . . 2 . . . . Monitor 1 | . . . . . . . . . . . . 1 . . . . Reject 1 | . . . . . . . . . . . . 1 . . . . Tunnel 6 | . 1 . . . 1 2 2 . . . . . . . . . Scanalyzers . | . . . . . . . . . . . . . . . . . Garrison Access 2 | . . . . . . . 1 . . . . 1 . . . . Watchers 1 | . . . . . . . . . . . . 1 . . . . Jam 1 | . . . . . . . 1 . . . . . . . . . Data Cores Recovered . | . . . . . . . . . . . . . . . . . Used . | . . . . . . . . . . . . . . . . . Hacking Detections 49 | . 6 . . . 11 14 9 . . . . 9 . . . . Full Trace Events 13 | . 2 . . . 6 . 4 . . . . 1 . . . . Feedback Events 1 | . 1 . . . . . . . . . . . . . . . Corruption 1 | . 1 . . . . . . . . . . . . . . . Feedback Blocked . | . . . . . . . . . . . . . . . . . Robot Schematics Acquired 5 | . . . . . . . . . . 5 . . . . . . Robots Built . | . . . . . . . . . . . . . . . . . Matter . | . . . . . . . . . . . . . . . . . Time . | . . . . . . . . . . . . . . . . . Total Robot Build Rating . | . . . . . . . . . . . . . . . . . Part Schematics Acquired 21 | . . . . . 5 1 1 . . 7 . 7 . . . . Parts Built 4 | . . . . . . . 3 . . . . 1 . . . . Matter 742 | . . . . . . . 424 . . . . 318 . . . . Time 189 | . . . . . . . 105 . . . . 84 . . . . Total Part Build Rating 23 | . . . . . . . 17 . . . . 6 . . . . Parts Repaired 6 | . 1 . . . 5 . . . . . . . . . . . Time 416 | . 50 . . . 366 . . . . . . . . . . . Parts Recycled . | . . . . . . . . . . . . . . . . . Recycled Matter . | . . . . . . . . . . . . . . . . . Retrieved Matter . | . . . . . . . . . . . . . . . . . Retrieved Components 3 | . . . . . . . 3 . . . . . . . . . Parts Scanalyzed 5 | . . . . . 5 . . . . . . . . . . . Part Schematics Acquired 5 | . . . . . 5 . . . . . . . . . . . Parts Damaged 1 | . . . . . 1 . . . . . . . . . . . Bothacking | -11 -10 -10 -10 -9 -8 -8 -7 -7 -7 -7 -6 -6 -6 -6 -6 -6 ------------ Run | Scr Mat Min Exi Min Mat Sto Fac Low Low Dat Pro Fac Low Low Zio Dee Used RIF Installer . | . . . . . . . . . . . . . . . . . Robots Hacked . | . . . . . . . . . . . . . . . . . Non-combat . | . . . . . . . . . . . . . . . . . Combat . | . . . . . . . . . . . . . . . . . Robot Hacks Applied . | . . . . . . . . . . . . . . . . . Relay Couplers Released . | . . . . . . . . . . . . . . . . . Robots Rewired 4 | . . . . . . . . . 3 . . . 1 . . . Allies Hacked . | . . . . . . . . . . . . . . . . . Hacks Repelled . | . . . . . . . . . . . . . . . . . Allies | -11 -10 -10 -10 -9 -8 -8 -7 -7 -7 -7 -6 -6 -6 -6 -6 -6 -------- Run | Scr Mat Min Exi Min Mat Sto Fac Low Low Dat Pro Fac Low Low Zio Dee Total Allies 11 | . . . . 2 . . . . 5 1 . 1 2 . . . Largest Group 3 | . . . . 2 . . . . 3 3 2 1 2 . . . Highest-Rated Group 172 | . . . . 39 . . . . 116 172 101 26 110 . . . Highest-Rated Ally 64 | . . . . 31 . . . . 64 61 59 26 64 . . . Total Orders 6 | . . . . . . . . . . . 5 . . . . 1 STAY 3 | . . . . . . . . . . . 3 . . . . . FOLLOW 2 | . . . . . . . . . . . 2 . . . . . RETURN 1 | . . . . . . . . . . . . . . . . 1 Ally Attacks 158 | . . . 26 42 . . . . 30 . . . 13 . . 47 Total Damage 3848 | . . . 1356 1430 . . . . 362 . . . 20 . . 680 Kills 32 | . . . 7 15 . . . . 5 . . . . . . 5 Allies Corrupted 1 | . . . . . . . . . . . . . 1 . . . Allies Melted . | . . . . . . . . . . . . . . . . . Turrets Deployed 4 | . . . 3 1 . . . . . . . . . . . . Field Lobotomies 4 | . . . . . . . . . 2 1 . . 1 . . . Intel | -11 -10 -10 -10 -9 -8 -8 -7 -7 -7 -7 -6 -6 -6 -6 -6 -6 ------- Run | Scr Mat Min Exi Min Mat Sto Fac Low Low Dat Pro Fac Low Low Zio Dee Robot Analysis Total 11 | . 5 . . . 1 . 2 . . . . 3 . . . . Derelict Logs Recovered 8 | . . 1 . 1 . . . 1 . . 1 . 2 1 1 . Drone Launches 3 | . . . . . . . . . . . . . . . . 3 Drone Recoveries 1 | . . . . . . . . . . . . . . . . 1 Exploration | -11 -10 -10 -10 -9 -8 -8 -7 -7 -7 -7 -6 -6 -6 -6 -6 -6 ------------- Run | Scr Mat Min Exi Min Mat Sto Fac Low Low Dat Pro Fac Low Low Zio Dee Turns Passed 17017 | 4151 1184 784 1364 441 2335 774 1575 248 399 122 364 793 474 246 1387 376 Spaces Moved 11557 | 908 915 548 1123 541 1470 622 1349 287 413 127 306 808 586 234 1016 304 Core 5 | 5 . . . . . . . . . . . . . . . . Treads 1189 | 808 10 297 74 . . . . . . . . . . . . . Legs . | . . . . . . . . . . . . . . . . . Wheels . | . . . . . . . . . . . . . . . . . Hover 10363 | 95 905 251 1049 541 1470 622 1349 287 413 127 306 808 586 234 1016 304 Flight . | . . . . . . . . . . . . . . . . . Fastest Speed 29 | 50 66 100 66 66 66 66 66 72 72 72 72 72 72 72 72 29 Average Speed 91 | 153 100 132 98 66 67 66 73 72 72 72 72 72 75 91 130 89 Slowest Speed 160 | 160 160 160 160 66 130 66 76 72 72 72 72 72 146 142 142 142 Overloaded Moves . | . . . . . . . . . . . . . . . . . Propulsion Burnouts . | . . . . . . . . . . . . . . . . . Robots Hopped 2 | . . . 1 1 . . . . . . . . . . . . Cave-ins Triggered . | . . . . . . . . . . . . . . . . . Exploration Rate (%) 71 | 98 97 99 90 95 87 90 38 58 58 76 55 31 78 37 88 37 Regions Visited 16 Branch Regions 12 Pre-discovered Areas 14 | . 1 . 1 . 1 2 2 3 . 1 . . . . 3 . Known Exits Taken 12 | . 1 . 1 . 1 1 1 1 1 1 1 1 1 1 . . Unknown Exits Taken 4 | 1 . 1 . 1 . . . . . . . . . . 1 . Scrap Searched 9 | . . 2 . 1 . . . . 2 . . . 2 2 . . Spaces Dug 16 | . . . . . 2 . 6 . . . . 5 . 3 . . Terrain Destroyed 63 | . 16 6 16 4 7 . 6 . . . . 5 . 3 . . Melee 16 | . . . . . 2 . 6 . . . . 5 . 3 . . Projectile . | . . . . . . . . . . . . . . . . . AOE 47 | . 16 6 16 4 5 . . . . . . . . . . . Terrain Rammed . | . . . . . . . . . . . . . . . . . Walls Destroyed . | . . . . . . . . . . . . . . . . . Machines Disabled . | . . . . . . . . . . . . . . . . . Actions | -11 -10 -10 -10 -9 -8 -8 -7 -7 -7 -7 -6 -6 -6 -6 -6 -6 --------- Run | Scr Mat Min Exi Min Mat Sto Fac Low Low Dat Pro Fac Low Low Zio Dee Total 17310 | 3649 1093 589 1353 602 2590 886 1847 318 502 155 436 985 615 258 1068 364 Wait 4597 | 2721 87 15 159 28 811 147 364 8 25 13 62 106 1 8 36 6 Move 11537 | 907 914 547 1120 538 1469 621 1348 286 412 126 305 807 585 233 1015 304 Hop 2 | . . . 1 1 . . . . . . . . . . . . Pick Up 67 | 3 2 2 15 1 9 2 4 2 1 4 4 3 5 3 2 5 Fast Attach 69 | 8 5 2 4 1 14 13 4 . . . 2 2 3 1 3 7 Attach 27 | . . 1 . 1 7 . 1 1 . 3 1 2 2 2 1 5 Detach 8 | . . . . 1 5 . . . . . 2 . . . . . Swap 18 | . 3 . 3 . 2 . 3 . 2 . . 1 2 . 2 . Drop 116 | 2 7 3 20 1 14 13 8 2 2 5 4 6 6 4 5 14 Fire 193 | 8 54 8 23 22 59 . . . 2 1 . . 1 . 4 11 Melee 352 | . . . . . 108 62 73 11 8 3 20 45 3 7 . 12 Ram 1 | . 1 . . . . . . . . . . . . . . . Kick . | . . . . . . . . . . . . . . . . . Crush . | . . . . . . . . . . . . . . . . . Escape Stasis 13 | . . . . . . 13 . . . . . . . . . . Rewire 33 | . . . . . . . . . 26 . 4 . 3 . . . Trap 3 | . . . . . . . . . . . 1 2 . . . . Miscellaneous 274 | . 20 11 8 8 92 15 42 8 24 . 31 11 4 . . . Route ------- -11/Scrapyard -10/Materials (discovered 5 exits: [*Mat x3] / *Min x2) -10/Mines (discovered 3 exits: [*Mat x2] / *Exi) -10/Exiles (discovered 2 exits: *Min x2) -9/Mines -8/Materials (discovered 4 exits: *Fac x3 / *Sto) -8/Storage (discovered 2 exits: *Fac / [Rec]) -7/Factory (discovered 3 exits: *Fac / *Low x2) -7/Lower Caves -7/Lower Caves (discovered 2 exits: Fac / *Dat) -7/Data Miner -6/Proximity Caves -6/Factory (discovered 6 exits: *Fac x4 / *Low x2) -6/Lower Caves -6/Lower Caves -6/Zion (discovered 2 exits: [*Dee] / [*Pro]) -6/Deep Caves History --------- Turn | Location | Event 5 | -11/Scrapyard | Upgraded with Propulsion slot (x1) 5 | -11/Scrapyard | Upgraded with Utility slot (x1) 5 | -11/Scrapyard | Upgraded with Weapon slot (x1) 7 | -11/Scrapyard | Discovered new exit (range 15) 2420 | -11/Scrapyard | Assembled infested the area 4152 | -11/Scrapyard | Entered Materials 4153 | -10/Materials | Build established: Mutant 4339 | -10/Materials | Core integrity fell below 50% 4355 | -10/Materials | Discovered new exit (range 17) 4366 | -10/Materials | Destroyed 8 combat bots 4403 | -10/Materials | Reached level 2 4432 | -10/Materials | Discovered new exit (range 16) 4534 | -10/Materials | Discovered new exit (range 17) 4707 | -10/Materials | Repaired Cmb. Airjet 4734 | -10/Materials | Upgraded with Utility slot (x1) 4882 | -10/Materials | Discovered new exit (range 12) 4897 | -10/Materials | Central database locked down 4897 | -10/Materials | Identified exit to Mines 5033 | -10/Materials | Build established: Hacker-Mutant 5052 | -10/Materials | Discovered new exit (range 16) 5336 | -10/Materials | Entered Mines 5338 | -10/Mines | Reached level 3 5341 | -10/Mines | Upgraded with Weapon slot (x1) 5374 | -10/Mines | Discovered new exit (range 10) 5543 | -10/Mines | Received a Rocket Launcher from a helpful Derelict 5606 | -10/Mines | Discovered new exit (range 7) 5660 | -10/Mines | Build established: Hacker-Skirmisher 5778 | -10/Mines | Discovered new exit (range 15) 5811 | -10/Mines | Deemed a non-threat by the Exiles lab entrance 6120 | -10/Mines | Entered Exiles 6121 | -10/Exiles | Identified exit to Mines 6154 | -10/Exiles | Met 8R-AWN 6206 | -10/Exiles | Met EX-HEX 6256 | -10/Exiles | Met EX-DEC 6280 | -10/Exiles | Visited The Gauntlet 6378 | -10/Exiles | Learned location of Zion (-6) 6485 | -10/Exiles | Met EX-BIN 6746 | -10/Exiles | Aligned with FarCom system 6747 | -10/Exiles | Given EX-Vault access code 6770 | -10/Exiles | Opened EX-Vault 6780 | -10/Exiles | Found Deploy-a-Sentry 6782 | -10/Exiles | Found Deploy-a-Sentry 6784 | -10/Exiles | Found Deploy-a-Sentry 6808 | -10/Exiles | Warned to stay clear of 0b10 Research branches 6887 | -10/Exiles | DAS Turret deployed 6923 | -10/Exiles | DAS Turret deployed 6955 | -10/Exiles | DAS Turret deployed 7012 | -10/Exiles | Found Field Lobotomy Kit 7165 | -10/Exiles | Attacked by the Exiles 7165 | -10/Exiles | Allies destroyed EX-DEC 7170 | -10/Exiles | Allies destroyed EX-HEX 7173 | -10/Exiles | Allies destroyed EX-BIN 7206 | -10/Exiles | Allies destroyed 8R-AWN 7322 | -10/Exiles | Found Prototype Device 7322 | -10/Exiles | Identified System Purifier 7345 | -10/Exiles | Found Prototype Energy Gun 7345 | -10/Exiles | Identified AWS/EX-DEC 7348 | -10/Exiles | Found Deploy-a-Sentry 7484 | -10/Exiles | Stole two prototypes: Field Lobotomy Kit, Deploy-a-Sentry 7484 | -10/Exiles | Entered Mines 7486 | -9/Mines | Reached level 4 7486 | -9/Mines | Upgraded with Utility slot (x1) 7503 | -9/Mines | Assembled infested the area 7511 | -9/Mines | DAS Turret deployed 7562 | -9/Mines | Destroyed 9 combat bots 7656 | -9/Mines | Learned location of 2 exits from Materials 7781 | -9/Mines | Found a damaged Exp. Sensor Array with a note attached 7782 | -9/Mines | Found Prototype Device 7810 | -9/Mines | Discovered new exit (range 16) 7901 | -9/Mines | Build established: Scavenger-Mutant 7925 | -9/Mines | Entered Materials 7926 | -8/Materials | Identified exit to Factory 7927 | -8/Materials | Reached level 5 7933 | -8/Materials | Upgraded with Utility slot (x1) 7933 | -8/Materials | Identified Exp. Sensor Array 7948 | -8/Materials | Core integrity fell below 50% 8077 | -8/Materials | Repaired Cold Fusion Reactor 8200 | -8/Materials | Reached level 6 8224 | -8/Materials | Garrison activated, responded to threat 8231 | -8/Materials | Build established: Scavenger-Scout 8448 | -8/Materials | Repaired Imp. Light Armor Plating 8480 | -8/Materials | Repaired EM Shotgun 8566 | -8/Materials | Upgraded with Power slot (x1) 8791 | -8/Materials | Repaired Exp. Sensor Array 8847 | -8/Materials | Reached level 7 8907 | -8/Materials | Build established: Scavenger-Mutant 8931 | -8/Materials | Upgraded with Utility slot (x1) 9148 | -8/Materials | Reached level 8 9197 | -8/Materials | Discovered new exit (range 3) 9215 | -8/Materials | Identified exit to Storage 9309 | -8/Materials | Discovered exit to Factory (range 12) 9550 | -8/Materials | Reached level 9 9808 | -8/Materials | Repaired Broken System Purifier 10150 | -8/Materials | Reached level 10 10156 | -8/Materials | Upgraded with Utility slot (x1) 10260 | -8/Materials | Entered Storage 10396 | -8/Storage | Reached level 11 10413 | -8/Storage | Upgraded with Utility slot (x1) 10800 | -8/Storage | Reached level 12 10829 | -8/Storage | Discovered new exit (range 20) 10959 | -8/Storage | Build established: Scavenger-Scout 11034 | -8/Storage | Entered Factory 11036 | -7/Factory | Reached level 13 11046 | -7/Factory | Upgraded with Utility slot (x1) 11118 | -7/Factory | Fabricated Imp. Cloaking Device (x1) 11162 | -7/Factory | Reached level 14 11179 | -7/Factory | Discovered new exit (range 9) 11201 | -7/Factory | Identified exit to Factory 11213 | -7/Factory | Discovered new exit (range 19) 11346 | -7/Factory | Fabricated Cmb. Airjet (x2) 11434 | -7/Factory | First assault squad dispatched 11666 | -7/Factory | Identified exit to Lower Caves 11849 | -7/Factory | Build established: Scavenger-Ninja 12264 | -7/Factory | Reached level 15 12289 | -7/Factory | Upgraded with Propulsion slot (x1) 12450 | -7/Factory | Build established: Hacker-Ninja 12582 | -7/Factory | Central database locked down 12609 | -7/Factory | Entered Lower Caves 12767 | -7/Lower Caves | Learned location of Extension (-4) 12767 | -7/Lower Caves | Learned Extension trap positions 12767 | -7/Lower Caves | Learned Research emergency access door positions 12767 | -7/Lower Caves | Learned Extension emergency access door positions 12767 | -7/Lower Caves | Learned Armory terminal intel 12809 | -7/Lower Caves | Attracted the attention of an 0b10 checkpoint 12848 | -7/Lower Caves | Discovered new exit (range 13) 12857 | -7/Lower Caves | Identified exit to Lower Caves 12857 | -7/Lower Caves | Entered another Lower Caves area 12859 | -7/Lower Caves | Attracted the attention of an 0b10 outpost 12926 | -7/Lower Caves | Build established: Scavenger-Ninja 13078 | -7/Lower Caves | Encountered a Warlord checkpoint 13117 | -7/Lower Caves | Reached level 16 13148 | -7/Lower Caves | Spotted CP-YF8(f) 13150 | -7/Lower Caves | Encountered a Master Thief 13153 | -7/Lower Caves | Assimilated CP-YF8(f) with FLK Orb 13156 | -7/Lower Caves | Spotted SC-DRX(f) 13157 | -7/Lower Caves | Encountered a Master Thief 13163 | -7/Lower Caves | Assimilated SC-DRX(f) with FLK Orb 13222 | -7/Lower Caves | Spotted 1P-N69(f) 13223 | -7/Lower Caves | Encountered a Master Thief 13230 | -7/Lower Caves | Destroyed 1P-N69(f) 13232 | -7/Lower Caves | Discovered new exit (range 23) 13246 | -7/Lower Caves | Identified exit to Data Miner 13256 | -7/Lower Caves | Entered Data Miner 13256 | -7/Data Miner | Accompanied by 2 allies 13256 | -7/Data Miner | Discovered new exit (range 6) 13262 | -7/Data Miner | Identified exit to Proximity Caves 13271 | -7/Data Miner | Met Data Miner 13295 | -7/Data Miner | Learned location of Section 7 (-2) 13295 | -7/Data Miner | Acquired the access code to Warlord's prototype stash 13307 | -7/Data Miner | Received God Mode back door access code from Data Miner 13321 | -7/Data Miner | Assimilated Data Miner with FLK Orb 13352 | -7/Data Miner | Destroyed SC-DRX(f) 13378 | -7/Data Miner | Entered Proximity Caves 13378 | -6/Proximity Caves | Accompanied by 2 allies (Data Miner) 13380 | -6/Proximity Caves | Attracted the attention of an 0b10 checkpoint 13388 | -6/Proximity Caves | Reached level 17 13561 | -6/Proximity Caves | Upgraded with Utility slot (x1) 13613 | -6/Proximity Caves | Learned Factory trap positions 13711 | -6/Proximity Caves | Destroyed 10 combat bots 13712 | -6/Proximity Caves | Found Prototype Hackware 13712 | -6/Proximity Caves | Identified Quantum Router 13724 | -6/Proximity Caves | Found Prototype Hackware 13724 | -6/Proximity Caves | Identified Ghost Barrier 13739 | -6/Proximity Caves | Spotted WD-N4T(f) 13741 | -6/Proximity Caves | Encountered a Master Thief 13742 | -6/Proximity Caves | Entered Factory 13743 | -6/Factory | Identified exit to Factory 13744 | -6/Factory | Loaded intel: 111 trap records 13744 | -6/Factory | Reached level 18 13962 | -6/Factory | Identified exit to Lower Caves 13962 | -6/Factory | Central database locked down 14027 | -6/Factory | Fabricated Combat Drone Bay (x1) 14069 | -6/Factory | Build established: Wizard-Ninja 14229 | -6/Factory | Local fabrication network quarantined 14442 | -6/Factory | First assault squad dispatched 14453 | -6/Factory | Reached level 19 14535 | -6/Factory | Entered Lower Caves 14649 | -6/Lower Caves | Spotted ZE-HO3(f) 14651 | -6/Lower Caves | Encountered a Master Thief 14653 | -6/Lower Caves | Spotted R6-RN3(f) 14653 | -6/Lower Caves | Assimilated ZE-HO3(f) with FLK Orb 14654 | -6/Lower Caves | Encountered a Master Thief 14658 | -6/Lower Caves | Field Lobotomy Kit stolen by Master Thief 14662 | -6/Lower Caves | Destroyed R6-RN3(f) 14721 | -6/Lower Caves | Spotted AQ-1RI(f) 14722 | -6/Lower Caves | Encountered a Master Thief 14722 | -6/Lower Caves | Spotted ZU-RYB(f) 14723 | -6/Lower Caves | Encountered a Master Thief 14729 | -6/Lower Caves | Destroyed AQ-1RI(f) 14737 | -6/Lower Caves | Destroyed ZU-RYB(f) 14791 | -6/Lower Caves | Learned location of 1 exit from Factory 14830 | -6/Lower Caves | Spotted 7N-UVC(f) 14832 | -6/Lower Caves | Encountered a Master Thief 14832 | -6/Lower Caves | Spotted HP-JPP(f) 14835 | -6/Lower Caves | Encountered a Master Thief 14837 | -6/Lower Caves | Field Lobotomy Kit stolen by Master Thief 14840 | -6/Lower Caves | Cmb. Airjet stolen by Master Thief 14841 | -6/Lower Caves | Destroyed 7N-UVC(f) 14936 | -6/Lower Caves | Spotted DU-ND3(f) 14937 | -6/Lower Caves | Encountered a Master Thief 14953 | -6/Lower Caves | Rewired DU-ND3(f) 14959 | -6/Lower Caves | Destroyed DU-ND3(f) 14991 | -6/Lower Caves | Discovered new exit (range 16) 15004 | -6/Lower Caves | Learned location of 2 exits from Factory 15008 | -6/Lower Caves | Identified exit to Lower Caves 15009 | -6/Lower Caves | Entered another Lower Caves area 15106 | -6/Lower Caves | Discovered new exit (range 24) 15150 | -6/Lower Caves | Identified exit to Zion 15158 | -6/Lower Caves | Upgraded with Weapon slot (x1) 15191 | -6/Lower Caves | Acquired the password to a Derelict Tinkerer's latest research 15200 | -6/Lower Caves | Found Prototype Special Weapon 15224 | -6/Lower Caves | Learned 8 Factory zone layouts 15255 | -6/Lower Caves | Entered Zion 15293 | -6/Zion | Discovered new exit (range 23) 15431 | -6/Zion | Found CR-A16's Pointy Stick 15452 | -6/Zion | Build established: Wizard-Assassin 15539 | -6/Zion | Learned location of Warlord (-4) 15563 | -6/Zion | Learned location of Quarantine (-3) 15734 | -6/Zion | Discovered new exit (range 22) 16033 | -6/Zion | Given the Hacking Drone Bay 16037 | -6/Zion | Found Prototype Device 16042 | -6/Zion | Identified Hacking Drone Bay 16474 | -6/Zion | Identified Molecular Deconstructor 16628 | -6/Zion | Saw the warning signs outside the Deep Caves entrance 16642 | -6/Zion | Entered Deep Caves 16780 | -6/Deep Caves | Build established: Wizard-Scout 16800 | -6/Deep Caves | Z-Facility disabled 16816 | -6/Deep Caves | Attacked by Z-Imprinter 16854 | -6/Deep Caves | Destroyed Z-Imprinter 16862 | -6/Deep Caves | Found Prototype Device 16867 | -6/Deep Caves | Identified Zio. Metafield Generator 16893 | -6/Deep Caves | Found Prototype Protection 16893 | -6/Deep Caves | Identified Zio. Weapon Casing 16969 | -6/Deep Caves | Core integrity fell below 50% 16993 | -6/Deep Caves | Core integrity fell below 20% 17018 | -6/Deep Caves | Destroyed by NH-FOG(z) with Zionite Laser-S Last Messages --------------- 16963_ Combat Drone destroyed. 16964_ L5-6IX(z) core destabilizing. 16966_ Concrete disintegrates. 16966_ L5-6IX(z) core entropy levels peaking. 16966_ L5-6IX(z) destroyed. 16966_ AWS/EX-DEC suddenly breaks down. 16966_ Dropped Broken AWS/EX-DEC. 16967_ Acquired 76 matter. 16968_ Acquired 10 matter. 16977_ Upgraded: Core Integrity (+250) 16979_ Med. Reactive Plating destroyed. 16981_ 8O-F6K(z) suffers critical hit. 16981_ Spear follow-up attack on 8O-F6K(z). 16981_ 8O-F6K(z) destroyed. 16988_ Spear follow-up attack on L1-7IC(z). 16990_ Protomatter-29 decays. 16994_ L1-7IC(z) destroyed. 16999_ Zio. Glidesys I destroyed. 17001_ Master Tearclaws follow-up attack on NH-FOG(z). 17001_ Spear follow-up attack on NH-FOG(z). Map ----- +----------------------------------------------------+ | | | | | | | | | | | | | | | | | | | | | | | ?????????#?#????##?#????#??###??#####??#?#?#?##### | | ????????#??#?##???? ? ?? #?### !###??########### | | ?????????##???? ?? ? ?#?## [#?#### | | ??????????????# #???#?#?####?#?# !### | | ???????????#?## ##?######?###### ### | | ????????#??### ## # ##!%[=# ## | | ????????#??# # ;;!*!=# | | ????????#??# *%! * ! !| | | ?????????#??# !=!! *%[ | | ???????????#### !%! | | ?????????#??#### !!* | | ?????????#?#### " "" """""" | | ?????????#?#### """""""""""""" | | ?????????#?? ?# """""""""""""" | | ??????????# @ """""""""""""" | | ??????????#=*# z """"""""""" | | ?????????#???## """""""""""""" | | ??????????????# """""?"""""""" | | ?????????????# """""""""?""" | | ???????????#### """?"?""""" | | ??????????????# """??"""" = | | ??????????????# """?"""" %/%= | | ????????????? """"""" ! ! | | ???????????? "?""""" "%/ | | ????????????? """?"""?"* | | ????????????? "?"?""""?"" | | ?????????????? "????"?"""""" | | ???????????????? "?"?"?? ?? | | ?????????????????? ???"?""???""" | | ????????????????????? ????????? ??"""" | | ??????????????????????? ???? ????????????"?" | | ?????????????????????????????????????????????"???? | | ?????????????????????????????????????????????????? | | ?????????????????????????????????????????????????? | | ?????????????????????????????????????????????????? | | ?????????????????????????????????????????????????? | | ?????????????????????????????????????????????????? | | ?????????????????????????????????????????????????? | | ?????????????????????????????????????????????????? | +----------------------------------------------------+ Best States ------------- Heat Dissipation 31 Energy Generation 35 Energy Capacity 265 Matter Stores 300 Matter Capacity 300 Sight Range 17 Robot Scan Range 36 Terrain Scan Range 24 Terrain Scan Density 310 Cloak Strength 3 Armor Coverage 600 Resistance: KI 30 Weapon Shielding 33 Melee Speed Boost 30 Evasion (%) 51 Melee Accuracy 5 Core Analysis 10 Recoil Reduction 2 Offensive Hacking 20 Defensive Hacking 55 Item Schematics ----------------- System Purifier | -8/Materials | Scanalyzed Cmb. Airjet | -8/Materials | Scanalyzed Cold Fusion Reactor | -8/Materials | Scanalyzed Imp. Medium Armor Plating | -8/Materials | Scanalyzed Aerolev Unit | -8/Materials | Scanalyzed System Shield | -8/Storage | Hacked Imp. Maneuvering Thrusters | -7/Factory | Hacked Combat Drone Bay | -7/Data Miner | Free Lgt. Regenerative Plating | -7/Data Miner | Free Triangulator | -7/Data Miner | Free Exp. Sensor Array | -7/Data Miner | Free Tactical Coordination Suite | -7/Data Miner | Free Cloaking Device | -7/Data Miner | Free Mni. Smartbomb Launcher | -7/Data Miner | Free Hvy. Plasma Cannon | -6/Factory | Hacked Hpw. Shock Rifle | -6/Factory | Hacked Adv. Shield Generator | -6/Factory | Hacked Nuclear Pulse Array | -6/Factory | Hacked Quantum Capacitor | -6/Factory | Hacked Neutrino Core | -6/Factory | Hacked Energy Well | -6/Factory | Hacked Robot Schematics ------------------ S-27 Virus | -7/Data Miner | Free G-50 Soldier | -7/Data Miner | Free H-66 Slayer | -7/Data Miner | Free I-36 Angel | -7/Data Miner | Free I-47 Archangel | -7/Data Miner | Free Fabricated ------------ Imp. Cloaking Device | x1 | -7/Factory | Preloaded Cmb. Airjet | x2 | -7/Factory Combat Drone Bay | x1 | -6/Factory Alien Tech Used ----------------- None Achievements -------------- None Challenges ------------ None RPGLIKE | -11 -10 -10 -10 -9 -8 -8 -7 -7 -7 -7 -6 -6 -6 -6 -6 -6 --------- Run | Scr Mat Min Exi Min Mat Sto Fac Low Low Dat Pro Fac Low Low Zio Dee Levels Raised 18 | . 1 1 . 1 6 2 3 . 1 . 1 2 . . . . XP Earned 31422 | 3100 2740 1100 350 1439 7829 3261 4473 292 1062 220 2523 1796 330 170 220 517 XP Spent 29980 | 2300 2200 800 . 2190 6825 3680 5300 . 700 . 2900 1560 . 1100 . 425 Upgrades 49 | 6 7 1 . 3 10 3 4 . 2 . 1 6 . 1 . 5 Power Slot 1 | . . . . . 1 . . . . . . . . . . . Propulsion Slot 2 | 1 . . . . . . 1 . . . . . . . . . Utility Slot 9 | 1 1 . . 1 3 1 1 . . . 1 . . . . . Weapon Slot 3 | 1 . 1 . . . . . . . . . . . 1 . . Core Integrity 9 | . . . . . . . . . . . . 4 . . . 5 Heat Dissipation 1 | . 1 . . . . . . . . . . . . . . . Energy Generation 1 | . . . . . . . . . 1 . . . . . . . Mass Support 1 | . 1 . . . . . . . . . . . . . . . Inventory Capacity 6 | 2 1 . . 1 . 1 1 . . . . . . . . . Sight Range 1 | . 1 . . . . . . . . . . . . . . . Sensor Range 3 | . . . . . 3 . . . . . . . . . . . Terrain Scan Density 3 | 1 . . . 1 . 1 . . . . . . . . . . Melee Accuracy 3 | . . . . . 2 . . . 1 . . . . . . . Hack Attack % 4 | . 1 . . . . . 1 . . . . 2 . . . . Hack Defense % 2 | . 1 . . . 1 . . . . . . . . . . . Protomatter Created 2460 | . 186 107 13 23 748 217 416 57 166 13 323 135 27 . . 29 Integrity Restored 5456 | . 411 200 157 186 1868 289 799 171 497 . 611 186 81 . . . Core 3658 | . 411 180 57 186 1280 156 414 171 204 . 387 131 81 . . . Parts 1798 | . . 20 100 . 588 133 385 . 293 . 224 55 . . . . Protomatter Decayed 588 | . 8 . . . 113 81 167 12 28 . 55 47 . . . 77 Game ------ Seed QuantumMetafieldShredder Manual? 0 Play Time 02:51:24 Cumulative 236.7 hours Start 2020.09.15 @ 03:03:01 End 2020.09.15 @ 06:13:07 Sessions 1 Manual Loads 0 Difficulty Rogue Special Mode Winter2019/RPGLIKE Game No. 99 Rogue 99 Adventurer 0 Explorer 0 Win Type - Total 3 Types 2/0/0/1/0/0/0/0/0 Lore% 82 Gallery% 82 Achievement% 69 Wizard Run 0 Options --------- ASCII 0 Keyboard 0 Movement Numpad Keybinds 0 Fullscreen 1 Font 18/SmallcapsGlow Map View 76x50 Tactical HUD 1 Map Filters NONE Filters NONE Steam 1 RUN: a28a0085-6fc1-4559-a666-195bf34cb1d7